fUSD/lending_fUSD_20251115
["ID","MTS","AMOUNT","RATE_DAILY","PERIOD"]
[394034124,1763203844884,-180.3056003,0.00041,8]
[394034125,1763203844894,-300.0,0.00041002,2]
[394034126,1763203844903,-300.0,0.00041013,2]
[394034127,1763203844914,-300.0,0.00041023,2]
[394034128,1763203844923,-300.0,0.0004103,2]
[394034129,1763203844932,-300.0,0.00041039,2]
[394034130,1763203844942,-300.0,0.00041039,2]
[394034131,1763203844951,-300.0,0.0004104,2]
[394034132,1763203844961,-300.0,0.0004104,2]
[394034133,1763203844972,-300.0,0.0004104,2]
[394034134,1763203844982,-1000.0,0.00041046,7]
[394034135,1763203844991,-300.0,0.00041049,2]
[394034136,1763203845000,-1000.0,0.00041051,7]
[394034137,1763203845009,-300.0,0.00041059,2]
[394034138,1763203845018,-300.0,0.00041067,2]
[394034139,1763203845027,-300.0,0.0004107,2]
[394034140,1763203845037,-300.0,0.00041073,2]
[394034141,1763203845046,-3430.0,0.00041084,2]
[394034142,1763203845056,-1603.0,0.00041084,2]
[394034143,1763203845065,-300.0,0.00041091,2]
[394034144,1763203845074,-300.0,0.00041093,2]
[394034145,1763203845084,-662.45,0.00041095,2]
[394034146,1763203845093,-3016.17,0.00041095,2]
[394034147,1763203845102,-300.0,0.00041095,2]
[394034148,1763203845111,-150.0,0.00041096,2]
[394034149,1763203845121,-500.0,0.00041096,2]
[394034150,1763203845130,-165.71929386,0.00041096,60]
[394034151,1763203845139,-500.0,0.00041096,2]
[394034152,1763203845149,-500.0,0.00041096,2]
[394034153,1763203845159,-500.0,0.00041096,2]
[394034154,1763203845169,-437.0,0.00041096,2]
[394034155,1763203845178,-500.0,0.00041096,2]
[394034156,1763203845188,-150.0,0.00041096,2]
[394034157,1763203845197,-500.0,0.00041096,2]
[394034158,1763203845207,-150.0,0.00041096,2]
[394034159,1763203845216,-471.0,0.00041096,2]
[394034160,1763203845225,-300.0,0.00041097,30]
[394034161,1763203845235,-300.0,0.00041097,30]
[394034162,1763203845244,-300.0,0.00041097,30]
[394034163,1763203845253,-1350872.8309374,0.00041098,60]
[394034165,1763203845412,-354.5307,0.000164,2]
[394034166,1763203845421,-1579.08600727,0.00017558,2]
[394034167,1763203845682,-594.27179784,0.00017558,2]
[394034168,1763203845935,-906.0,0.00017558,2]
[394034169,1763203845950,-391.73202926,0.00017558,2]
[394034170,1763203845960,-605.695526,0.000331,30]
[394034171,1763203845970,-550.16,0.00038849,2]
[394034172,1763203845991,-300.0,0.00040602,2]
[394034173,1763203846001,-300.0,0.00040642,2]
[394034174,1763203846011,-300.0,0.00040664,2]
[394034175,1763203846020,-300.0,0.00040733,2]
[394034176,1763203846031,-300.0,0.00040759,2]
[394034177,1763203846040,-300.0,0.00040792,2]
[394034178,1763203846051,-300.0,0.00040801,2]
[394034179,1763203846061,-300.0,0.00040809,2]
[394034180,1763203846071,-300.0,0.00040838,2]
[394034181,1763203846081,-300.0,0.00040842,2]
[394034182,1763203846091,-300.0,0.00040867,2]
[394034183,1763203846101,-300.0,0.00040872,2]
[394034184,1763203846111,-300.0,0.00040872,2]
[394034185,1763203846121,-300.0,0.00040877,2]
[394034186,1763203846131,-300.0,0.00040897,2]
[394034187,1763203846141,-300.0,0.00040941,2]
[394034188,1763203846150,-300.0,0.0004095,2]
[394034189,1763203846161,-300.0,0.00040959,2]
[394034190,1763203846171,-300.0,0.0004099,2]
[394034191,1763203846182,-300.0,0.00040997,2]
[394034192,1763203846192,-300.0,0.0004102,2]
[394034193,1763203846202,-300.0,0.00041022,2]
[394034194,1763203846212,-300.0,0.00041028,2]
[394034195,1763203846222,-12842.30835482,0.00041098,60]
[394034197,1763203846247,-60.06015953,0.00041098,60]
[394034198,1763203846268,-464.82195,0.00017944,2]
[394034212,1763203932852,500.0,0.00015671,2]
[394034340,1763204447902,276.66,0.0001507,2]
[394034341,1763204499391,318.18,0.00030137,120]
[394034342,1763204556215,774.33,0.00013699,2]
[394034476,1763204819754,166.66,0.00015513,2]
[394034479,1763204902252,200.0,0.00015678,2]
[394034503,1763205031766,-166.66,0.00015839,2]
[394034504,1763205031777,-195.0,0.0001584,2]
[394034505,1763205031787,-834.32280455,0.0001584,2]
[394034506,1763205031798,-165.67719545,0.0001584,2]
[394034507,1763205031808,-195.0,0.00015852,2]
[394034508,1763205031818,-250.0,0.00015853,2]
[394034509,1763205031827,-250.0,0.00015861,2]
[394034510,1763205031840,-1679.55,0.00015867,2]
[394034511,1763205031850,-768.55,0.00015867,2]
[394034512,1763205031859,-177.99,0.00015909,2]
[394034513,1763205031868,-166.66,0.00016166,2]
[394034514,1763205031878,-1199.0,0.00016299,2]
[394034515,1763205031887,-550.0,0.00016299,2]
[394034516,1763205031896,-300.0,0.00016299,2]
[394034517,1763205031906,-1200.0,0.00016299,2]
[394034518,1763205031915,-308.57280455,0.000163,2]
[394034519,1763205031928,-1480.499992,0.000163,2]
[394034520,1763205031939,-318.10448703,0.000163,2]
[394034521,1763205031950,-639.20597912,0.000163,2]
[394034522,1763205031961,-3908.3173373,0.000163,2]
[394034523,1763205031972,-234.7044,0.000163,2]
[394034524,1763205031981,-280.2361,0.000163,2]
[394034525,1763205031990,-194.73322408,0.00016373,2]
[394034526,1763205032000,-472.01807675,0.00016373,2]
[394034527,1763205032009,-151.0,0.0001639,2]
[394034528,1763205032019,-151.0,0.0001639,2]
[394034529,1763205032030,-151.0,0.0001639,2]
[394034530,1763205032043,-151.0,0.0001639,2]
[394034531,1763205032054,-151.0,0.0001639,2]
[394034532,1763205032063,-151.0,0.0001639,2]
[394034533,1763205032071,-151.0,0.0001639,2]
[394034534,1763205032081,-151.0,0.0001639,2]
[394034535,1763205032090,-255.72336996,0.0001639,2]
[394034536,1763205032099,-162.5378106,0.00016392,2]
[394034537,1763205032108,-4000.76064399,0.00016392,2]
[394034538,1763205032117,-2036.17170564,0.00016392,2]
[394034539,1763205032126,-563.99968387,0.00016399,2]
[394034540,1763205032135,-392.95623526,0.00016399,2]
[394034541,1763205032144,-500.0,0.00016399,2]
[394034542,1763205032153,-500.0,0.00016399,2]
[394034543,1763205032162,-500.0,0.00016399,2]
[394034544,1763205032171,-500.0,0.00016399,2]
[394034545,1763205032180,-500.0,0.00016399,2]
[394034546,1763205032189,-655.094,0.00016399,2]
[394034547,1763205032198,-155.32959462,0.00016399,2]
[394034548,1763205032208,-500.0,0.00016399,2]
[394034549,1763205032218,-500.0,0.00016399,2]
[394034550,1763205032227,-466.41,0.00016399,2]
[394034551,1763205032240,-166.66,0.00016492,2]
[394034552,1763205032249,-466.41,0.00016673,2]
[394034553,1763205032260,-4447.11728293,0.00016692,2]
[394034554,1763205032270,-768.55,0.00016702,2]
[394034555,1763205032279,-166.66,0.00016819,2]
[394034556,1763205032288,-10084.91,0.00016922,2]
[394034557,1763205032298,-6079.2,0.00016922,2]
[394034558,1763205032307,-762.28344257,0.00016922,2]
[394034559,1763205032349,-522.04790989,0.00016922,2]
[394034560,1763205032360,-864.08449454,0.00016922,2]
[394034561,1763205032372,-14366.484153,0.00016922,2]
[394034562,1763205032381,-466.41,0.00016947,2]
[394034563,1763205032390,-250.0,0.00017,2]
[394034564,1763205032400,-166.66,0.00017146,2]
[394034565,1763205032409,-466.41,0.00017221,2]
[394034566,1763205032421,-730.66084712,0.00017266,2]
[394034567,1763205032432,-250.0,0.00017423,2]
[394034568,1763205032441,-200.0,0.00017423,2]
[394034569,1763205032451,-200.0,0.00017423,2]
[394034570,1763205032461,-195.0,0.00017423,2]
[394034571,1763205032474,-195.0,0.00017454,2]
[394034572,1763205032483,-150.47377522,0.00017454,2]
[394034573,1763205032492,-466.44,0.00017495,2]
[394034574,1763205032501,-768.55,0.00017537,2]
[394034575,1763205032510,-1254.0,0.00017796,2]
[394034576,1763205032519,-500.0,0.00017808,2]
[394034577,1763205032529,-420.0,0.00017815,2]
[394034578,1763205032538,-1000.0,0.0001782,2]
[394034579,1763205032547,-1254.0,0.00017861,2]
[394034580,1763205032556,-1680.0,0.00017904,2]
[394034581,1763205032565,-1254.0,0.00017993,2]
[394034582,1763205032574,-1254.0,0.00018069,2]
[394034583,1763205032583,-1254.0,0.000181,2]
[394034584,1763205032592,-1254.0,0.00018127,2]
[394034585,1763205032601,-1254.0,0.00018141,2]
[394034586,1763205032610,-1254.0,0.00018146,2]
[394034587,1763205032619,-1254.0,0.00018158,2]
[394034588,1763205032630,-1254.0,0.0001823,2]
[394034589,1763205032641,-1254.0,0.00018286,2]
[394034590,1763205032650,-1254.0,0.0001837,2]
[394034591,1763205032659,-768.55,0.00018372,2]
[394034592,1763205032669,-1254.0,0.00018418,2]
[394034593,1763205032678,-1254.0,0.00018423,2]
[394034594,1763205032688,-150.0,0.00018463,2]
[394034595,1763205032701,-500.0,0.00018672,2]
[394034596,1763205032710,-500.0,0.00018672,2]
[394034597,1763205032720,-500.0,0.00018672,2]
[394034598,1763205032730,-15855.03,0.00018673,2]
[394034599,1763205032739,-500.0,0.00018678,2]
[394034600,1763205032748,-1254.0,0.00018682,2]
[394034601,1763205032757,-1254.0,0.00018704,2]
[394034602,1763205032767,-157.04190861,0.00018858,2]
[394034603,1763205032778,-250.0,0.00018878,2]
[394034604,1763205032787,-200.0,0.000189,6]
[394034605,1763205032796,-1254.0,0.00018905,2]
[394034606,1763205032805,-1254.0,0.00018929,2]
[394034607,1763205032814,-1254.0,0.00018943,2]
[394034608,1763205032824,-300.0,0.00019,2]
[394034609,1763205032833,-1254.0,0.00019037,2]
[394034610,1763205032843,-4000.76064393,0.00019126,2]
[394034611,1763205032852,-2036.17170562,0.00019126,2]
[394034612,1763205032861,-1254.0,0.00019163,2]
[394034613,1763205032870,-1254.0,0.00019206,2]
[394034614,1763205032880,-768.55,0.00019207,2]
[394034615,1763205032889,-1254.0,0.00019243,2]
[394034616,1763205032898,-1254.0,0.00019257,2]
[394034617,1763205032907,-150.99,0.00019339,2]
[394034618,1763205032916,-1188.29,0.00019339,2]
[394034619,1763205032925,-323.52,0.00019339,2]
[394034620,1763205032935,-150.99,0.00019339,2]
[394034621,1763205032943,-9999.99,0.00019339,2]
[394034622,1763205032953,-167.49,0.00019339,2]
[394034623,1763205032962,-999.99,0.00019339,2]
[394034624,1763205032971,-1254.0,0.00019442,2]
[394034625,1763205032980,-587.0,0.00019472,2]
[394034626,1763205032989,-2351.0,0.00019667,2]
[394034627,1763205032999,-1000.0,0.000198,2]
[394034628,1763205033009,-768.55,0.00020043,2]
[394034629,1763205033028,-774.33,0.00020187,2]
[394034630,1763205033038,-192.68,0.00020264,2]
[394034631,1763205033047,-478.96003305,0.00020349,2]
[394034632,1763205033057,-157.19895052,0.0002061,2]
[394034633,1763205033067,-768.55,0.00020878,2]
[394034634,1763205033076,-350.0,0.00021,2]
[394034635,1763205033086,-2122.0,0.00021604,2]
[394034636,1763205033095,-768.55,0.00021713,2]
[394034637,1763205033105,-1000.0,0.0002178,2]
[394034638,1763205033114,-53.7591874,0.0002186,2]
[394034639,1763205033127,-418.24853192,0.0002186,2]
[394034640,1763205033138,-3528.75292461,0.0002186,2]
[394034641,1763205033148,-1966.89637838,0.0002186,2]
[394034642,1763205033159,-69.27532724,0.0002186,2]
[394034643,1763205033168,-1598.0,0.00022241,2]
[394034644,1763205033177,-821.0,0.00022241,2]
[394034645,1763205033187,-793.0,0.00022241,2]
[394034646,1763205033196,-1275.0,0.00022241,2]
[394034647,1763205033205,-560.0,0.00022301,2]
[394034648,1763205033215,-6487.0,0.00022301,2]
[394034649,1763205033224,-640.40498297,0.00022301,2]
[394034650,1763205033235,-962.59501703,0.00022301,2]
[394034651,1763205033245,-174.42448754,0.00022534,2]
[394034652,1763205033256,-400.57551246,0.00022534,2]
[394034653,1763205033265,-499.28967815,0.00022534,2]
[394034656,1763205037862,-1214.998,0.00022301,2]
[394034657,1763205037872,-108.71032185,0.00022534,2]
[394034658,1763205037881,-1329.522,0.00022534,2]
[394034659,1763205037890,-3430.0,0.00022534,2]
[394034660,1763205037900,-768.55,0.00022548,2]
[394034661,1763205037909,-4.32959254,0.0002264,2]
[394034665,1763205039695,-145.67040746,0.0002264,2]
[394034666,1763205039708,-136.89779286,0.00022967,2]
[394034667,1763205039750,-84.93706311,0.00022967,2]
[394034668,1763205039761,-500.0,0.00023,7]
[394034669,1763205039769,-500.0,0.00023288,7]
[394034670,1763205039780,-210.57,0.00023325,2]
[394034671,1763205039790,-768.55,0.00023383,2]
[394034672,1763205039799,-500.0,0.00023562,7]
[394034673,1763205039808,-163.00519291,0.00023585,2]
[394034674,1763205039817,-1000.0,0.0002376,2]
[394034675,1763205039826,-500.0,0.00023836,7]
[394034676,1763205039835,-500.0,0.0002411,7]
[394034677,1763205039844,-500.0,0.00024164,7]
[394034678,1763205039853,-768.55,0.00024218,2]
[394034679,1763205039862,-4000.76064393,0.00024594,2]
[394034680,1763205039871,-2036.17170562,0.00024594,2]
[394034681,1763205039880,-1000.0,0.00024658,2]
[394034682,1763205039890,-5000.0,0.000247,2]
[394034683,1763205039899,-500.0,0.00024773,2]
[394034684,1763205039908,-500.0,0.00024799,2]
[394034685,1763205039917,-500.0,0.00024799,2]
[394034686,1763205039928,-500.0,0.00024799,2]
[394034687,1763205039937,-455.22667891,0.00024799,2]
[394034688,1763205039946,-187.0849195,0.00024799,2]
[394034689,1763205039955,-478.96003305,0.000248,3]
[394034690,1763205039965,-279216.008547,0.000248,3]
[394034691,1763205039975,-191.28003735,0.00024873,2]
[394034692,1763205039985,-500.0,0.00024873,2]
[394034693,1763205039994,-500.0,0.000249,9]
[394034694,1763205040003,-145921.769953,0.000249,3]
[394034695,1763205040012,-150.0,0.00025,2]
[394034696,1763205040022,-150.0,0.00025,2]
[394034697,1763205040031,-150.0,0.00025,2]
[394034698,1763205040040,-150.0,0.00025,2]
[394034699,1763205040050,-150.0,0.00025,2]
[394034700,1763205040059,-150.0,0.00025,2]
[394034701,1763205040068,-150.0,0.00025,2]
[394034702,1763205040077,-150.0,0.00025,2]
[394034703,1763205040086,-150.0,0.00025,2]
[394034704,1763205040095,-150.0,0.00025,2]
[394034706,1763205040105,-263.771,0.00025,2]
[394034708,1763205040113,-768.55,0.00025053,2]
[394034709,1763205040123,-463.80240271,0.00025214,2]
[394034712,1763205040350,-1598.0,0.00025241,2]
[394034713,1763205040360,-821.0,0.00025241,2]
[394034714,1763205040370,-793.0,0.00025241,2]
[394034715,1763205040379,-1275.0,0.00025241,2]
[394034716,1763205040388,-560.0,0.00025301,2]
[394034717,1763205040398,-6487.0,0.00025301,2]
[394034718,1763205040409,-1603.0,0.00025301,2]
[394034719,1763205040418,-1190.0,0.00025301,2]
[394034720,1763205040427,-1019.08823513,0.00025321,2]
[394034721,1763205040437,-500.0,0.00025373,7]
[394034722,1763205040446,-511.0,0.00025373,7]
[394034723,1763205040455,-1001.86678561,0.00025421,2]
[394034724,1763205040465,-478.96003305,0.000255,3]
[394034725,1763205040476,-366.99815821,0.00025523,2]
[394034726,1763205040486,-575.0,0.00025534,2]
[394034727,1763205040495,-608.0,0.00025534,2]
[394034728,1763205040504,-1318.0,0.00025534,2]
[394034729,1763205040513,-3430.0,0.00025534,2]
[394034730,1763205040523,-768.55,0.00025888,2]
[394034731,1763205040532,-500.0,0.00026388,7]
[394034732,1763205040541,-500.0,0.00026581,7]
[394034733,1763205040550,-774.33,0.00026676,2]
[394034734,1763205040561,-768.55,0.00026723,2]
[394034735,1763205040570,-4000.76064393,0.00027328,2]
[394034736,1763205040579,-2036.17170562,0.00027328,2]
[394034737,1763205040588,-300.0,0.00027397,2]
[394034738,1763205040597,-152.33,0.000274,7]
[394034739,1763205040606,-159.66,0.000274,7]
[394034740,1763205040615,-500.0,0.00027402,14]
[394034741,1763205040625,-31024.0009497,0.00027548,3]
[394034742,1763205040634,-768.55,0.00027558,2]
[394034743,1763205040643,-500.0,0.00027789,14]
[394034744,1763205040652,-24320.2949922,0.00028231,3]
[394034745,1763205040661,-1598.0,0.00028241,2]
[394034746,1763205040670,-821.0,0.00028241,2]
[394034747,1763205040679,-793.0,0.00028241,2]
[394034748,1763205040688,-1275.0,0.00028241,2]
[394034749,1763205040702,-560.0,0.00028301,2]
[394034750,1763205040712,-6487.0,0.00028301,2]
[394034751,1763205040722,-1603.0,0.00028301,2]
[394034752,1763205040731,-1190.0,0.00028301,2]
[394034753,1763205040741,-768.55,0.00028393,2]
[394034754,1763205040751,-500.0,0.00028417,14]
[394034755,1763205040760,-575.0,0.00028534,2]
[394034756,1763205040772,-608.0,0.00028534,2]
[394034757,1763205040781,-1318.0,0.00028534,2]
[394034758,1763205040790,-3430.0,0.00028534,2]
[394034759,1763205040799,-153.0,0.00028653,2]
[394034760,1763205040808,-162.5378106,0.00028696,2]
[394034761,1763205040817,-500.0,0.00028997,14]
[394034762,1763205040827,-768.55,0.00029229,2]
[394034763,1763205040837,-500.0,0.00029432,14]
[394034764,1763205040848,-237.83278585,0.00029534,5]
[394034765,1763205040858,-216.92063022,0.0002966,2]
[394034766,1763205040867,-192.68,0.00029852,2]
[394034767,1763205040876,-450.0,0.00029987,7]
[394034768,1763205040885,-174.0,0.0003,14]
[394034769,1763205040895,-216.92063022,0.00030052,2]
[394034770,1763205040906,-4000.76064393,0.00030062,2]
[394034771,1763205040915,-2036.17170562,0.00030062,2]
[394034772,1763205040924,-768.55,0.00030064,2]
[394034773,1763205040934,-216.92063022,0.00030193,2]
[394034774,1763205040944,-216.92063022,0.00030413,2]
[394034775,1763205040953,-500.0,0.00030447,14]
[394034776,1763205040963,-300.0,0.00030672,7]
[394034777,1763205040974,-216.92063022,0.00030837,2]
[394034778,1763205040982,-768.55,0.00030899,2]
[394034779,1763205040991,-216.92063022,0.00031188,2]
[394034780,1763205041000,-1598.0,0.00031241,2]
[394034781,1763205041009,-821.0,0.00031241,2]
[394034782,1763205041019,-793.0,0.00031241,2]
[394034783,1763205041030,-1275.0,0.00031241,2]
[394034784,1763205041040,-560.0,0.00031301,2]
[394034785,1763205041051,-6487.0,0.00031301,2]
[394034786,1763205041061,-1603.0,0.00031301,2]
[394034787,1763205041071,-1190.0,0.00031301,2]
[394034788,1763205041079,-216.92063022,0.00031375,2]
[394034789,1763205041089,-227.09,0.00031507,120]
[394034790,1763205041097,-575.0,0.00031534,2]
[394034791,1763205041106,-608.0,0.00031534,2]
[394034792,1763205041115,-1318.0,0.00031534,2]
[394034793,1763205041125,-3430.0,0.00031534,2]
[394034794,1763205041136,-174.0,0.00031644,14]
[394034795,1763205041146,-1000.0,0.00031661,2]
[394034796,1763205041156,-216.92063022,0.00031708,2]
[394034797,1763205041165,-768.55,0.00031734,2]
[394034798,1763205041174,-216.92063022,0.00031803,2]
[394034799,1763205041183,-216.92063022,0.00032243,2]
[394034800,1763205041193,-216.92063022,0.00032434,2]
[394034801,1763205041202,-216.92063022,0.00032771,2]
[394034802,1763205041211,-4000.76064393,0.00032796,2]
[394034803,1763205041220,-2036.17170562,0.00032796,2]
[394034804,1763205041230,-1000.0,0.00032848,2]
[394034805,1763205041240,-216.92063022,0.00032951,2]
[394034806,1763205041250,-150.0,0.00033,14]
[394034807,1763205041262,-300.0,0.00033031,2]
[394034808,1763205041272,-774.33,0.00033165,2]
[394034809,1763205041281,-175.0,0.00033226,30]
[394034810,1763205041290,-216.92063022,0.00033385,2]
[394034811,1763205041302,-216.92063022,0.0003367,2]
[394034812,1763205041312,-216.92063022,0.00033723,2]
[394034813,1763205041321,-159.66,0.00034,30]
[394034814,1763205041330,-1000.0,0.00034036,2]
[394034815,1763205041338,-216.92063022,0.00034118,2]
[394034816,1763205041347,-31024.0009497,0.00034231,3]
[394034817,1763205041357,-24320.2949922,0.00034231,3]
[394034818,1763205041366,-1598.0,0.00034241,2]
[394034819,1763205041375,-821.0,0.00034241,2]
[394034820,1763205041384,-793.0,0.00034241,2]
[394034821,1763205041393,-1275.0,0.00034241,2]
[394034822,1763205041402,-216.92063022,0.00034286,2]
[394034823,1763205041411,-152.33,0.000343,14]
[394034824,1763205041420,-521.958,0.00034301,2]
[394034825,1763205041430,-849.518,0.00034301,2]
[394034826,1763205041439,-1603.0,0.00034301,2]
[394034827,1763205041448,-300.0,0.00034401,2]
[394034828,1763205041457,-575.0,0.00034534,2]
[394034829,1763205041466,-608.0,0.00034534,2]
[394034830,1763205041476,-1318.0,0.00034534,2]
[394034831,1763205041485,-3430.0,0.00034534,2]
[394034832,1763205041494,-216.92063022,0.00034634,2]
[394034833,1763205041503,-216.92063022,0.00035006,2]
[394034834,1763205041512,-192.68,0.00035044,2]
[394034835,1763205041521,-882.52,0.00035115,5]
[394034836,1763205041530,-1000.0,0.00035223,2]
[394034837,1763205041539,-216.92063022,0.00035259,2]
[394034838,1763205041548,-163.00519291,0.00035377,2]
[394034839,1763205041557,-227.09,0.00035445,120]
[394034840,1763205041566,-216.92063022,0.00035498,2]
[394034841,1763205041576,-4000.76064393,0.0003553,2]
[394034842,1763205041585,-2036.17170562,0.0003553,2]
[394034843,1763205041594,-2000.0,0.000356,2]
[394034844,1763205041603,-216.92063022,0.00035637,2]
[394034845,1763205041611,-216.92063022,0.00035981,2]
[394034846,1763205041620,-1002.09,0.00036,2]
[394034847,1763205041630,-151.0,0.00036397,14]
[394034848,1763205041639,-2000.0,0.000364,2]
[394034849,1763205041648,-1000.0,0.0003641,2]
[394034850,1763205041657,-216.92063022,0.00036436,2]
[394034851,1763205041666,-216.92063022,0.00036605,2]
[394034852,1763205041674,-864.77,0.00036703,5]
[394034853,1763205041683,-1002.09,0.0003672,2]
[394034854,1763205041693,-216.92063022,0.00036794,2]
[394034855,1763205041708,-159.66,0.000368,30]
[394034856,1763205041717,-173.65619352,0.00036988,30]
[394034857,1763205041728,-216.92063022,0.00037022,2]
[394034858,1763205041737,-821.0,0.00037241,2]
[394034859,1763205041748,-793.0,0.00037241,2]
[394034860,1763205041758,-216.92063022,0.00037271,2]
[394034861,1763205041767,-1603.0,0.00037301,2]
[394034862,1763205041778,-1002.09,0.0003744,2]
[394034863,1763205041789,-608.0,0.00037534,2]
[394034864,1763205041798,-1318.0,0.00037534,2]
[394034865,1763205041807,-3430.0,0.00037534,2]
[394034866,1763205041816,-216.92063022,0.00037626,2]
[394034867,1763205041826,-216.92063022,0.0003796,2]
[394034868,1763205041836,-2000.0,0.00038,2]
[394034869,1763205041845,-1002.09,0.0003816,2]
[394034870,1763205041854,-4000.76064393,0.00038264,2]
[394034871,1763205041864,-2036.17170562,0.00038264,2]
[394034872,1763205041873,-216.92063022,0.0003828,2]
[394034873,1763205041882,-24320.2949922,0.00038346,4]
[394034874,1763205041892,-3016.17,0.00038356,2]
[394034875,1763205041901,-500.0,0.00038356,2]
[394034876,1763205041911,-317.03300854,0.00038356,2]
[394034877,1763205041920,-3390.0,0.00038356,5]
[394034878,1763205041930,-300.0,0.00038356,2]
[394034879,1763205041939,-300.0,0.00038356,2]
[394034880,1763205041949,-662.45,0.00038356,2]
[394034881,1763205041958,-500.0,0.00038356,10]
[394034882,1763205041968,-500.0,0.00038356,2]
[394034883,1763205041978,-216.92063022,0.00038406,2]
[394034884,1763205041987,-522.71533717,0.00038502,30]
[394034885,1763205041997,-3016.17,0.0003863,2]
[394034886,1763205042006,-500.0,0.0003863,2]
[394034887,1763205042016,-300.0,0.0003863,2]
[394034888,1763205042025,-337.19090708,0.0003863,2]
[394034889,1763205042035,-662.45,0.0003863,2]
[394034890,1763205042044,-500.0,0.0003863,10]
[394034891,1763205042053,-274.96797838,0.0003863,2]
[394034892,1763205042063,-216.92063022,0.00038716,2]
[394034893,1763205042073,-300.0,0.00038861,2]
[394034894,1763205042083,-31024.0009497,0.0003887,4]
[394034895,1763205042093,-1002.09,0.0003888,2]
[394034896,1763205042104,-3016.17,0.00038904,2]
[394034897,1763205042114,-500.0,0.00038904,2]
[394034898,1763205042123,-300.0,0.00038904,2]
[394034899,1763205042132,-662.45,0.00038904,2]
[394034900,1763205042143,-179.45522551,0.00038904,10]
[394034901,1763205042153,-300.0,0.00038961,2]
[394034902,1763205042163,-216.92063022,0.00039002,2]
[394034903,1763205042174,-300.0,0.00039161,2]
[394034904,1763205042183,-3016.17,0.00039178,2]
[394034905,1763205042194,-500.0,0.00039178,2]
[394034906,1763205042203,-300.0,0.00039178,2]
[394034907,1763205042212,-662.45,0.00039178,2]
[394034908,1763205042221,-2000.0,0.000393,2]
[394034909,1763205042231,-227.09,0.00039384,120]
[394034910,1763205042240,-216.92063022,0.0003941,2]
[394034911,1763205042249,-3016.17,0.00039452,2]
[394034912,1763205042260,-500.0,0.00039452,2]
[394034913,1763205042270,-300.0,0.00039452,2]
[394034914,1763205042281,-662.45,0.00039452,2]
[394034915,1763205042290,-300.0,0.00039461,2]
[394034916,1763205042299,-1000.0,0.000395,30]
[394034917,1763205042308,-216.92063022,0.00039548,2]
[394034918,1763205042317,-515.53639077,0.00039561,30]
[394034919,1763205042326,-1002.09,0.000396,30]
[394034920,1763205042335,-150.0,0.00039652,2]
[394034921,1763205042344,-774.33,0.00039654,2]
[394034922,1763205042353,-300.0,0.0003966,2]
[394034923,1763205042362,-1100.14,0.00039671,2]
[394034924,1763205042371,-1100.08,0.00039671,2]
[394034925,1763205042381,-550.16,0.00039671,2]
[394034926,1763205042389,-3016.17,0.00039726,2]
[394034927,1763205042398,-500.0,0.00039726,2]
[394034928,1763205042408,-300.0,0.00039726,2]
[394034929,1763205042417,-662.45,0.00039726,2]
[394034930,1763205042426,-1000.0,0.0003975,60]
[394034931,1763205042435,-170.19709622,0.00039763,30]
[394034932,1763205042444,-216.92063022,0.0003978,2]